lending/lending_fUSD_20240824
["ID","MTS","AMOUNT","RATE_DAILY","PERIOD"]
[335721056,1724463043582,-690.31,0.00010998,2]
[335721057,1724463043590,-500.68244308,0.00010998,2]
[335721059,1724463043600,-500.0,0.00010998,2]
[335721061,1724463043608,-500.0,0.00010998,2]
[335721063,1724463043618,-500.0,0.00010998,2]
[335721065,1724463043627,-500.0,0.00010998,2]
[335721067,1724463043636,-754.51,0.00010998,2]
[335721069,1724463043644,-754.51,0.00010998,2]
[335721071,1724463043654,-506.70495556,0.00010998,2]
[335721073,1724463043666,-247.80504444,0.00010998,2]
[335721075,1724463043674,-134.31754138,0.00010998,2]
[335721077,1724463043685,-361.6920653,0.00010998,2]
[335721080,1724463043696,-3.99039332,0.00010998,2]
[335721082,1724463043705,-607.98,0.00010998,2]
[335721084,1724463043715,-500.0,0.00010998,2]
[335721085,1724463043724,-500.0,0.00010998,2]
[335721087,1724463043733,-500.0,0.00010998,2]
[335721089,1724463043742,-500.0,0.00010998,2]
[335721091,1724463043752,-500.0,0.00010998,2]
[335721093,1724463043761,-500.0,0.00010998,2]
[335721095,1724463043769,-500.0,0.00010998,2]
[335721097,1724463043779,-500.0,0.00010998,2]
[335721099,1724463043787,-500.0,0.00010998,2]
[335721101,1724463043796,-500.0,0.00010998,2]
[335721103,1724463043805,-500.0,0.00010998,2]
[335721105,1724463043815,-288.92501964,0.00010998,2]
[335721110,1724463043856,-270.53498036,0.00010998,2]
[335721112,1724463043865,-1288.91670672,0.00010998,2]
[335721114,1724463043876,-273.88727203,0.00010998,2]
[335721117,1724463043887,-1092.03602125,0.00010998,2]
[335721119,1724463043896,-2654.84,0.00010998,2]
[335721121,1724463043905,-779.88090975,0.00010998,2]
[335721123,1724463043916,-1128.06641355,0.00010998,2]
[335721125,1724463043927,-746.8926767,0.00010998,2]
[335721127,1724463043937,-165.5573233,0.00010998,2]
[335721129,1724463043948,-334.4426767,0.00010998,2]
[335721131,1724463043957,-500.0,0.00010998,2]
[335721133,1724463043966,-88.65403027,0.00010998,2]
[335721314,1724463045903,-411.34596973,0.00010998,2]
[335721317,1724463045913,-500.0,0.00010998,2]
[335721319,1724463045922,-587.74,0.00010998,2]
[335721321,1724463045931,-500.0,0.00010998,2]
[335721323,1724463045941,-500.0,0.00010998,2]
[335721325,1724463045950,-500.0,0.00010998,2]
[335721327,1724463045960,-500.0,0.00010998,2]
[335721329,1724463045969,-506.91266094,0.00010998,2]
[335721331,1724463045978,-444.84765964,0.00010998,2]
[335721333,1724463045988,-500.0,0.00010998,2]
[335721335,1724463045997,-500.0,0.00010998,2]
[335721337,1724463046006,-500.0,0.00010998,2]
[335721339,1724463046015,-500.0,0.00010998,2]
[335721341,1724463046023,-500.0,0.00010998,2]
[335721343,1724463046033,-362.89171791,0.00010998,2]
[335721345,1724463046042,-514.92,0.00010998,2]
[335721346,1724463046051,-514.92,0.00010998,2]
[335721348,1724463046060,-514.92,0.00010998,2]
[335721350,1724463046071,-500.0,0.00010999,2]
[335721352,1724463046080,-500.0,0.00010999,2]
[335721354,1724463046089,-500.0,0.00010999,2]
[335721356,1724463046098,-500.0,0.00010999,2]
[335721358,1724463046107,-423.85519117,0.00010999,2]
[335721360,1724463046118,-148.14480883,0.00010999,2]
[335721362,1724463046127,-500.0,0.00010999,2]
[335721364,1724463046136,-500.0,0.00010999,2]
[335721366,1724463046145,-500.0,0.00010999,2]
[335721368,1724463046154,-500.0,0.00010999,2]
[335721370,1724463046163,-500.0,0.00010999,2]
[335721372,1724463046174,-238.60518917,0.00010999,2]
[335721374,1724463046185,-261.39481083,0.00010999,2]
[335721376,1724463046195,-500.0,0.00010999,2]
[335721378,1724463046205,-500.0,0.00010999,2]
[335721380,1724463046215,-84.96328366,0.00010999,2]
[335721382,1724463046226,-415.03671634,0.00010999,2]
[335721384,1724463046237,-500.0,0.00010999,2]
[335721386,1724463046247,-500.0,0.00010999,2]
[335721388,1724463046256,-467.58264017,0.00010999,2]
[335721390,1724463046266,-500.0,0.00010999,2]
[335721392,1724463046275,-500.0,0.00010999,2]
[335721394,1724463046285,-500.0,0.00010999,2]
[335721396,1724463046295,-500.0,0.00010999,2]
[335721399,1724463046304,-500.0,0.00010999,2]
[335721401,1724463046316,-500.0,0.00010999,2]
[335721403,1724463046325,-500.0,0.00010999,2]
[335721405,1724463046334,-500.0,0.00010999,2]
[335721407,1724463046344,-500.0,0.00010999,2]
[335721409,1724463046354,-500.0,0.00010999,2]
[335721411,1724463046363,-500.0,0.00010999,2]
[335721413,1724463046372,-500.0,0.00010999,2]
[335721415,1724463046382,-145.017068,0.00010999,2]
[335721417,1724463046394,-354.982932,0.00010999,2]
[335721419,1724463046403,-500.0,0.00010999,2]
[335721421,1724463046412,-500.0,0.00010999,2]
[335721423,1724463046421,-500.0,0.00010999,2]
[335721425,1724463046431,-500.0,0.00010999,2]
[335721427,1724463046441,-500.0,0.00010999,2]
[335721429,1724463046450,-500.0,0.00010999,2]
[335721431,1724463046459,-52.64995619,0.00010999,2]
[335721433,1724463046471,-283.51720375,0.00010999,2]
[335721435,1724463046483,-163.83284006,0.00010999,2]
[335721437,1724463046494,-193.05081466,0.00010999,2]
[335721439,1724463046505,-306.94918534,0.00010999,2]
[335721441,1724463046514,-109.62044786,0.00010999,2]
[335721445,1724463046541,-390.37955214,0.00010999,2]
[335721447,1724463046551,-168.28058107,0.00010999,2]
[335721449,1724463046559,-106.98014891,0.00010999,2]
[335721451,1724463046571,-393.01985109,0.00010999,2]
[335721453,1724463046580,-500.0,0.00010999,2]
[335721455,1724463046589,-520.24480599,0.00010999,2]
[335721457,1724463046598,-500.0,0.00010999,2]
[335721459,1724463046606,-500.0,0.00010999,2]
[335721461,1724463046615,-241.68429308,0.00010999,2]
[335721463,1724463046626,-258.31570692,0.00010999,2]
[335721465,1724463046635,-500.0,0.00010999,2]
[335721467,1724463046644,-500.0,0.00010999,2]
[335721469,1724463046653,-236.50466393,0.00010999,2]
[335721471,1724463046664,-263.49533607,0.00010999,2]
[335721473,1724463046673,-37.32949082,0.00010999,2]
[335721475,1724463046684,-462.67050918,0.00010999,2]
[335721477,1724463046694,-500.0,0.00010999,2]
[335721479,1724463046702,-118.90456899,0.00010999,2]
[335721481,1724463046713,-277.38,0.00010999,2]
[335721484,1724463046724,-103.71543101,0.00010999,2]
[335721486,1724463046733,-315.13410466,0.00010999,2]
[335721488,1724463046744,-184.86589534,0.00010999,2]
[335721490,1724463046753,-500.0,0.00010999,2]
[335721492,1724463046762,-355.26,0.00010999,2]
[335721494,1724463046772,-182.45552943,0.00010999,2]
[335721496,1724463046783,-317.54447057,0.00010999,2]
[335721498,1724463046791,-500.0,0.00010999,2]
[335721500,1724463046800,-500.0,0.00010999,2]
[335721502,1724463046810,-500.0,0.00010999,2]
[335721504,1724463046819,-500.0,0.00010999,2]
[335721506,1724463046829,-500.0,0.00010999,2]
[335721508,1724463046838,-500.0,0.00010999,2]
[335721510,1724463046847,-500.0,0.00010999,2]
[335721512,1724463046856,-326.61,0.00010999,2]
[335721514,1724463046865,-500.0,0.00010999,2]
[335721516,1724463046874,-500.0,0.00010999,2]
[335721518,1724463046883,-500.0,0.00010999,2]
[335721519,1724463046892,-594.19668199,0.00010999,2]
[335721521,1724463046901,-500.0,0.00010999,2]
[335721523,1724463046910,-500.0,0.00010999,2]
[335721525,1724463046919,-500.0,0.00010999,2]
[335721527,1724463046929,-179.9065762,0.00010999,2]
[335721529,1724463046938,-500.0,0.00010999,2]
[335721531,1724463046947,-500.0,0.00010999,2]
[335721533,1724463046957,-500.0,0.00010999,2]
[335721535,1724463046966,-500.0,0.00010999,2]
[335721537,1724463046976,-500.0,0.00010999,2]
[335721539,1724463046986,-500.0,0.00010999,2]
[335721541,1724463046995,-500.0,0.00010999,2]
[335721543,1724463047004,-500.0,0.00010999,2]
[335721545,1724463047013,-500.0,0.00010999,2]
[335721547,1724463047022,-500.0,0.00010999,2]
[335721549,1724463047031,-500.0,0.00010999,2]
[335721551,1724463047040,-500.0,0.00010999,2]
[335721553,1724463047049,-500.0,0.00010999,2]
[335721555,1724463047058,-409.36,0.00010999,2]
[335721557,1724463047067,-500.0,0.00010999,2]
[335721559,1724463047076,-500.0,0.00010999,2]
[335721561,1724463047085,-500.0,0.00010999,2]
[335721563,1724463047094,-500.0,0.00010999,2]
[335721565,1724463047103,-500.0,0.00010999,2]
[335721567,1724463047112,-500.0,0.00010999,2]
[335721569,1724463047121,-500.0,0.00010999,2]
[335721571,1724463047130,-500.0,0.00010999,2]
[335721573,1724463047140,-500.0,0.00010999,2]
[335721575,1724463047149,-500.0,0.00010999,2]
[335721577,1724463047158,-500.0,0.00010999,2]
[335721579,1724463047167,-500.0,0.00010999,2]
[335721581,1724463047177,-500.0,0.00010999,2]
[335721583,1724463047186,-500.0,0.00010999,2]
[335721585,1724463047195,-500.0,0.00010999,2]
[335721587,1724463047205,-500.0,0.00010999,2]
[335721589,1724463047214,-157.8,0.00010999,2]
[335721591,1724463047223,-500.0,0.00010999,2]
[335721593,1724463047235,-500.0,0.00010999,2]
[335721595,1724463047245,-500.0,0.00010999,2]
[335721597,1724463047254,-500.0,0.00010999,2]
[335721599,1724463047263,-500.0,0.00010999,2]
[335721601,1724463047273,-500.0,0.00010999,2]
[335721603,1724463047284,-500.0,0.00010999,2]
[335721605,1724463047294,-500.0,0.00010999,2]
[335721607,1724463047303,-188.19,0.00010999,2]
[335721609,1724463047314,-500.0,0.00010999,2]
[335721611,1724463047326,-500.0,0.00010999,2]
[335721613,1724463047335,-500.0,0.00010999,2]
[335721615,1724463047344,-500.0,0.00010999,2]
[335721617,1724463047354,-500.0,0.00010999,2]
[335721619,1724463047363,-160.82797359,0.00010999,2]
[335721621,1724463047373,-500.0,0.00010999,2]
[335721623,1724463047382,-500.0,0.00010999,2]
[335721625,1724463047391,-500.0,0.00010999,2]
[335721627,1724463047401,-248.833847,0.00010999,2]
[335721629,1724463047410,-500.0,0.00010999,2]
[335721631,1724463047419,-500.0,0.00010999,2]
[335721633,1724463047428,-500.0,0.00010999,2]
[335721635,1724463047437,-500.0,0.00010999,2]
[335721637,1724463047446,-500.0,0.00010999,2]
[335721639,1724463047455,-500.0,0.00010999,2]
[335721641,1724463047464,-500.0,0.00010999,2]
[335721643,1724463047474,-500.0,0.00010999,2]
[335721645,1724463047482,-500.0,0.00010999,2]
[335721647,1724463047492,-370.77876144,0.00010999,2]
[335721649,1724463047505,-129.22123856,0.00010999,2]
[335721651,1724463047514,-500.0,0.00010999,2]
[335721653,1724463047523,-357.07969747,0.00010999,2]
[335721657,1724463047549,-142.92030253,0.00010999,2]
[335721659,1724463047559,-181.82136836,0.00010999,2]
[335721661,1724463047577,-318.17863164,0.00010999,2]
[335721663,1724463047586,-347.34160058,0.00010999,2]
[335721665,1724463047597,-152.65839942,0.00010999,2]
[335721667,1724463047606,-500.0,0.00010999,2]
[335721669,1724463047615,-500.0,0.00010999,2]
[335721671,1724463047625,-511.0455819,0.00010999,2]
[335721674,1724463047636,-2783.9144181,0.00010999,2]
[335721676,1724463047645,-3294.96,0.00010999,2]
[335721678,1724463047654,-3294.96,0.00010999,2]
[335721680,1724463047663,-3294.96,0.00010999,2]
[335721682,1724463047672,-3294.96,0.00010999,2]
[335721684,1724463047681,-3294.96,0.00010999,2]
[335721686,1724463047690,-2568.75116991,0.00010999,2]
[335721688,1724463047701,-309.99106155,0.00010999,2]
[335721690,1724463047712,-416.21776854,0.00010999,2]
[335721692,1724463047722,-3294.96,0.00010999,2]
[335721694,1724463047731,-3294.96,0.00010999,2]
[335721696,1724463047740,-800.16223146,0.00010999,2]
[335721698,1724463047751,-2009.13156047,0.00010999,2]
[335721700,1724463047762,-450.0,0.00010999,2]
[335721702,1724463047773,-35.66620807,0.00010999,2]
[335721703,1724463047782,-863.32901581,0.00010999,2]
[335721704,1724463047793,-2127.62018939,0.00010999,2]
[335721705,1724463047803,-304.0107948,0.00010999,2]
[335721706,1724463047812,-414.0939884,0.00010999,2]
[335721707,1724463047824,-900.09,0.00010999,2]
[335721708,1724463047835,-631.37538617,0.00010999,2]
[335721709,1724463047847,-1349.40062543,0.00010999,2]
[335721710,1724463047856,-3294.96,0.00010999,2]
[335721711,1724463047865,-3294.96,0.00010999,2]
[335721712,1724463047874,-3294.96,0.00010999,2]
[335721713,1724463047883,-3294.96,0.00010999,2]
[335721714,1724463047892,-3294.96,0.00010999,2]
[335721715,1724463047901,-3294.96,0.00010999,2]
[335721716,1724463047910,-3294.96,0.00010999,2]
[335721718,1724463047919,-3294.96,0.00010999,2]
[335721720,1724463047929,-3294.96,0.00010999,2]
[335721722,1724463047938,-3294.96,0.00010999,2]
[335721724,1724463047947,-3294.99945178,0.00010999,2]
[335721726,1724463047955,-13241.95956693,0.00010999,2]
[335721728,1724463047966,-1254.11162,0.00010999,2]
[335721733,1724463048007,-2114.52881307,0.00010999,2]
[335721735,1724463048017,-3852.02876154,0.00010999,2]
[335721738,1724463048033,-361.43277495,0.00010999,2]
[335723407,1724463083097,333.33333333,0.00027,120]
[335723411,1724463187843,250.0,0.0001,2]
[335723414,1724463239890,526.92,8.219e-05,2]
[335723415,1724463258137,163.14063833,0.0001,2]
[335723416,1724463260480,170.89712642,0.0001,2]
[335723417,1724463261629,182.29742642,0.0001,2]
[335723420,1724463336362,92380.04199913,0.00027,120]
[335723421,1724463387055,5231.41719294,0.00027,120]
[335723424,1724463481993,200.0,9.981e-05,2]
[335723425,1724463534790,263.48,9.969e-05,2]
[335723426,1724463544746,155.4067366,9.981e-05,2]
[335723427,1724463565028,1000.0,9.977e-05,2]
[335723428,1724463595009,373.42,9.963e-05,2]
[335723429,1724463616455,169.75,9.968e-05,2]
[335723430,1724463639260,7306.84,9.953e-05,2]
[335723432,1724463680221,1050.0,0.0001,2]
[335723433,1724463682930,100000.0,0.00025,60]
[335723434,1724463699127,800.0,0.0001,2]
[335723435,1724463714537,155.78544773,9.953e-05,2]
[335723436,1724463749904,222.08241,0.00025,65]
[335723437,1724463752205,5743.08,9.929e-05,2]
[335723438,1724463753976,222.08241,0.00025,72]
[335723439,1724463757351,222.08241,0.00025,79]
[335723440,1724463761288,222.08241,0.00025,86]
[335723441,1724463765320,222.08241,0.00025,93]
[335723442,1724463773101,584.27,8.219e-05,2]
[335723443,1724463796542,598.31636205,9.953e-05,2]
[335723444,1724463803880,858.0,0.0002,90]
[335723445,1724463812399,333.08241,0.00025,64]
[335723446,1724463816564,333.08241,0.00025,71]
[335723447,1724463819285,2138.0,0.00025,90]
[335723448,1724463820695,333.08241,0.00025,78]
[335723449,1724463824803,333.08241,0.00025,84]
[335723451,1724463828615,333.08241,0.00025,85]
[335723452,1724463837136,333.08241,0.00025,62]
[335723453,1724463839513,2181.77,0.00025,90]
[335723454,1724463840282,333.08241,0.00025,69]
[335723455,1724463843424,333.08241,0.00025,63]
[335723456,1724463854824,1940.17,0.00025,80]
[335723457,1724463867549,1850.0,0.00025,85]
[335723458,1724463900183,441.17,9.928e-05,2]
[335723459,1724463908022,3276.0,0.00025,80]
[335723460,1724463935615,159.11,7.17e-05,2]
[335723462,1724463965937,401.1,9.913e-05,2]
[335723463,1724463983173,333.33333334,0.00027,120]
[335723465,1724464002561,3531.56724462,0.00010009,2]
[335723472,1724464037188,485.94142006,0.00010009,2]
[335723473,1724464042209,263.52,9.911e-05,2]
[335723475,1724464063255,2784.92620327,0.00010009,2]
[335723477,1724464072592,109239.008,0.00027,120]
[335723478,1724464091716,200.0,9.915e-05,2]
[335723479,1724464100872,3941.4888216,0.00010009,2]
[335723480,1724464107258,4867.63756783,0.00010009,2]
[335723481,1724464114950,510.82,9.925e-05,2]
[335723482,1724464127436,5000.0,0.00027,120]
[335723490,1724464169317,5000.0,0.00027,120]
[335723492,1724464173989,175.9,9.92e-05,2]
[335723502,1724464194227,278.51836618,0.00010009,2]
[335723503,1724464213441,250.0,9.925e-05,2]
[335723504,1724464229243,3961.8752193,0.00010009,2]
[335723514,1724464232050,-208.96,0.0001044,2]
[335723515,1724464232059,-178.41,0.00010468,2]
[335723516,1724464232068,-78.28120639,0.00010472,2]
[335723517,1724464232185,-505.98879361,0.00010472,2]
[335723518,1724464232195,-150.0,0.00010548,2]
[335723519,1724464232204,-794.01120639,0.000107,2]
[335723520,1724464232218,-205.98879361,0.000107,2]
[335723521,1724464232229,-191.75300749,0.00010798,2]
[335723522,1724464232242,-108.24699251,0.00010798,2]
[335723523,1724464232251,-920.83053896,0.00010799,2]
[335723524,1724464232264,-1884.81416104,0.00010799,2]
[335723525,1724464232274,-328.53077153,0.00010799,2]
[335723526,1724464232286,-671.46922847,0.00010799,2]
[335723527,1724464232296,-285.30314502,0.00010799,2]
[335723528,1724464232308,-2214.69685498,0.00010799,2]
[335723529,1724464232320,-150.99,0.00010799,2]
[335723530,1724464232330,-2016.586172,0.000108,2]
[335723531,1724464232341,-2448.8144998,0.00010841,2]
[335723532,1724464232351,-9413.19,0.00010841,2]
[335723533,1724464232362,-622.14,0.00010841,2]
[335723534,1724464232372,-499.99,0.00010841,2]
[335723535,1724464232383,-1668.75,0.00010841,2]
[335723536,1724464232392,-150.0,0.00010857,2]
[335723537,1724464232402,-100000.0,0.00010858,2]
[335723538,1724464232413,-5820.59,0.00010859,2]
[335723539,1724464232422,-28297.6429,0.00010859,2]
[335723540,1724464232431,-575.3566483,0.00010862,2]
[335723541,1724464232441,-572.07,0.00010888,2]
[335723542,1724464232452,-155.55030534,0.00010888,2]
[335723543,1724464232462,-2434.33108,0.0001089,2]
[335723544,1724464232472,-299.99,0.0001089,2]
[335723545,1724464232482,-155.0,0.0001089,2]
[335723546,1724464232491,-500.0,0.00010897,2]
[335723547,1724464232500,-333.65815318,0.00010898,2]
[335723548,1724464232510,-38207.7417,0.00010899,2]
[335723549,1724464232519,-559.08801807,0.00010899,2]
[335723550,1724464232528,-559.08801802,0.00010899,2]
[335723551,1724464232537,-559.08801802,0.00010899,2]
[335723552,1724464232547,-559.08801802,0.00010899,2]
[335723553,1724464232556,-559.08801802,0.00010899,2]
[335723554,1724464232566,-559.08801802,0.00010899,2]
[335723556,1724464232575,-559.08801802,0.00010899,2]
[335723557,1724464232584,-559.08801802,0.00010899,2]
[335723558,1724464232593,-559.08801802,0.00010899,2]
[335723559,1724464232602,-850.16902254,0.00010899,2]
[335723560,1724464232614,-794.49,0.000109,2]
[335723561,1724464232623,-790.9,0.000109,2]
[335723562,1724464232632,-559.08801802,0.000109,2]
[335723563,1724464232642,-896.65789102,0.000109,2]
[335723564,1724464232651,-790.9,0.000109,2]
[335723565,1724464232662,-582.9725954,0.000109,2]
[335723566,1724464232671,-1003.0,0.000109,2]
[335723567,1724464232680,-790.9,0.000109,2]
[335723568,1724464232691,-5000.0,0.000109,2]
[335723569,1724464232700,-4231.9728583,0.000109,2]
[335723570,1724464232709,-159.94,0.00010959,2]
[335723571,1724464232719,-298.9072,0.00010959,2]
[335723572,1724464232727,-153.92,0.00010959,2]
[335723573,1724464232737,-209.82162067,0.0001097,2]
[335723574,1724464232746,-500.0,0.0001098,2]
[335723575,1724464232754,-209.82162067,0.00010982,2]
[335723576,1724464232764,-209.82162067,0.00010985,2]
[335723577,1724464232774,-209.82162067,0.00010987,2]
[335723578,1724464232783,-256.50992545,0.00010989,2]
[335723579,1724464232792,-161.74,0.00010989,2]
[335723580,1724464232801,-182.0,0.0001099,2]
[335723581,1724464232810,-500.0,0.0001099,2]
[335723582,1724464232819,-500.0,0.00010995,2]
[335723583,1724464232829,-507.63729132,0.00010995,2]
[335723584,1724464232838,-510.55191355,0.00010995,2]
[335723585,1724464232847,-639.86,0.00010995,2]
[335723586,1724464232856,-500.0,0.00010995,2]
[335723587,1724464232866,-500.0,0.00010995,2]
[335723588,1724464232875,-510.86918251,0.00010995,2]
[335723589,1724464232884,-506.49758774,0.00010995,2]
[335723590,1724464232893,-500.0,0.00010995,2]
[335723591,1724464232902,-500.0,0.00010995,2]
[335723592,1724464232911,-500.0,0.00010995,2]
[335723593,1724464232921,-533.47308911,0.00010995,2]
[335723594,1724464232930,-500.0,0.00010995,2]
[335723595,1724464232939,-509.14839855,0.00010995,2]
[335723596,1724464232949,-511.12898061,0.00010995,2]
[335723597,1724464232958,-500.0,0.00010995,2]
[335723598,1724464232968,-503.87361472,0.00010995,2]
[335723599,1724464232977,-505.92847553,0.00010995,2]
[335723600,1724464232986,-425.07952655,0.00010995,2]
[335723601,1724464232995,-500.0,0.00010995,2]
[335723602,1724464233004,-509.73512787,0.00010995,2]
[335723603,1724464233013,-670.68,0.00010995,2]
[335723604,1724464233022,-500.0,0.00010995,2]
[335723605,1724464233032,-500.0,0.00010995,2]
[335723606,1724464233041,-500.0,0.00010995,2]
[335723607,1724464233050,-500.0,0.00010995,2]
[335723608,1724464233060,-510.55240131,0.00010995,2]
[335723609,1724464233069,-500.0,0.00010995,2]
[335723610,1724464233078,-317.09183917,0.00010995,2]
[335723611,1724464233087,-500.0,0.00010995,2]
[335723612,1724464233097,-500.0,0.00010995,2]
[335723613,1724464233106,-500.0,0.00010995,2]
[335723614,1724464233115,-500.0,0.00010995,2]
[335723615,1724464233125,-604.17265146,0.00010995,2]
[335723616,1724464233134,-2362.24,0.00010995,2]
[335723617,1724464233144,-505.81557898,0.00010995,2]
[335723618,1724464233153,-500.0,0.00010995,2]
[335723619,1724464233162,-500.0,0.00010995,2]
[335723620,1724464233172,-500.0,0.00010995,2]
[335723621,1724464233181,-500.0,0.00010995,2]
[335723622,1724464233190,-500.0,0.00010995,2]
[335723623,1724464233200,-320.3595,0.00010995,2]
[335723624,1724464233209,-500.0,0.00010995,2]
[335723625,1724464233219,-600.53130793,0.00010995,2]
[335723626,1724464233228,-503.31285082,0.00010995,2]
[335723627,1724464233238,-500.0,0.00010995,2]
[335723628,1724464233247,-505.50336273,0.00010995,2]
[335723629,1724464233257,-500.0,0.00010995,2]
[335723630,1724464233266,-301.266686,0.00010995,2]
[335723631,1724464233275,-209.82162067,0.00010996,2]
[335723632,1724464233285,-445.62179254,0.00010996,2]
[335723633,1724464233294,-514.57863425,0.00010996,2]
[335723634,1724464233303,-500.0,0.00010996,2]
[335723635,1724464233313,-741.82,0.00010996,2]
[335723636,1724464233322,-500.0,0.00010996,2]
[335723637,1724464233331,-500.0,0.00010996,2]
[335723638,1724464233342,-500.0,0.00010996,2]
[335723639,1724464233351,-525.78130763,0.00010996,2]
[335723640,1724464233361,-500.0,0.00010996,2]
[335723641,1724464233370,-530.32753448,0.00010996,2]
[335723642,1724464233380,-500.0,0.00010996,2]
[335723643,1724464233390,-500.0,0.00010996,2]
[335723644,1724464233400,-500.0,0.00010996,2]
[335723645,1724464233409,-500.0,0.00010996,2]
[335723646,1724464233420,-500.0,0.00010996,2]
[335723647,1724464233429,-15051.24,0.00010996,2]
[335723648,1724464233439,-166.14477657,0.00010996,2]
[335723649,1724464233449,-500.0,0.00010996,2]
[335723650,1724464233460,-222.40702482,0.00010996,2]
[335723651,1724464233470,-207.54747834,0.00010996,2]
[335723652,1724464233479,-564.87,0.00010997,2]
[335723653,1724464233489,-510.09342204,0.00010997,2]
[335723654,1724464233498,-500.0,0.00010997,2]
[335723655,1724464233507,-519.64659251,0.00010997,2]
[335723656,1724464233517,-500.0,0.00010997,2]
[335723657,1724464233526,-505.17461358,0.00010997,2]
[335723658,1724464233536,-510.40230797,0.00010997,2]
[335723659,1724464233546,-511.51302418,0.00010997,2]
[335723660,1724464233555,-541.00022567,0.00010997,2]
[335723661,1724464233565,-516.37750024,0.00010997,2]
[335723662,1724464233574,-500.0,0.00010997,2]
[335723663,1724464233583,-500.0,0.00010997,2]
[335723664,1724464233593,-500.0,0.00010997,2]
[335723665,1724464233603,-554.49,0.00010997,2]
[335723666,1724464233615,-500.0,0.00010997,2]
[335723667,1724464233624,-500.0,0.00010997,2]
[335723668,1724464233634,-500.0,0.00010997,2]
[335723669,1724464233644,-455.1915069,0.00010997,2]
[335723670,1724464233654,-500.0,0.00010997,2]
[335723671,1724464233665,-500.0,0.00010997,2]
[335723672,1724464233675,-500.0,0.00010997,2]
[335723673,1724464233685,-909.32,0.00010997,2]
[335723674,1724464233696,-540.43630372,0.00010997,2]
[335723675,1724464233710,-500.0,0.00010997,2]
[335723676,1724464233719,-500.0,0.00010997,2]
[335723677,1724464233729,-500.0,0.00010997,2]
[335723678,1724464233738,-500.0,0.00010997,2]
[335723679,1724464233748,-500.0,0.00010997,2]
[335723680,1724464233757,-500.0,0.00010997,2]
[335723681,1724464233766,-500.0,0.00010997,2]
[335723682,1724464233776,-500.0,0.00010997,2]
[335723683,1724464233786,-500.0,0.00010997,2]
[335723684,1724464233795,-577.9944244,0.00010997,2]
[335723685,1724464233806,-530.86462885,0.00010997,2]
[335723686,1724464233815,-500.0,0.00010997,2]
[335723687,1724464233825,-507.86951002,0.00010997,2]
[335723688,1724464233838,-520.70505339,0.00010997,2]
[335723689,1724464233849,-538.51870883,0.00010997,2]
[335723690,1724464233859,-500.0,0.00010997,2]
[335723691,1724464233868,-500.0,0.00010997,2]
[335723692,1724464233878,-503.15067766,0.00010997,2]
[335723693,1724464233888,-500.0,0.00010997,2]
[335723694,1724464233897,-635.45132989,0.00010997,2]
[335723695,1724464233907,-500.0,0.00010997,2]
[335723696,1724464233916,-500.0,0.00010997,2]
[335723697,1724464233925,-500.0,0.00010997,2]
[335723698,1724464233943,-508.80120225,0.00010997,2]
[335723699,1724464233954,-500.0,0.00010997,2]
[335723700,1724464233964,-516.35146931,0.00010997,2]
[335723701,1724464233974,-500.0,0.00010997,2]